{"text_format":"1","workbook":"xlsx","n_sheets":12,"sheets":["1. Forside","2. Samlet prisloft","3. Driftsomkostninger","4. Historiske investeringer","5. Gennemførte investeringer","6. Korrektion investeringer","7. Planlagte investeringer","8. 1-1 omkostninger","9. Miljø- og servicemål","10. Nettofinansielle poster","11. Over- eller underdækning","12. Kontrol med indtægtsrammen"],"not_rendered":{"charts":0,"images":0,"macros":1,"external_links":0,"defined_names":0,"comments":0,"pivot_tables":0},"unopened":[],"bounds":{"document_bytes":16777216,"sheet_cells":100000,"rows_first":2000,"rows_last":500,"rows_between":2000,"halvings":0,"cell_chars":16384,"cell_head_chars":4096},"cells_cut":0,"cells_raw":0,"read":"whole","date_system":"1900"}

{"sheet":"1. Forside","index":0,"n_rows":26,"n_cols":4,"rows_kept":26,"cut":false,"hidden":false,"merged":[[25,3,25,5],[24,3,24,5],[23,3,23,5],[22,3,22,5],[21,3,21,5],[20,3,20,5],[19,3,19,5],[18,3,18,5],[7,3,7,5],[12,3,12,5],[15,3,15,5],[16,3,16,5],[17,3,17,5]]}
["Silkeborg Vand A/S"]
[]
[]
[]
[]
[]
[]
[null,null,null,"Bilag A"]
[]
[]
[]
[]
[null,null,null,"Indholdsfortegnelse"]
[]
[]
[null,null,"Fane nr. 2","Samlet prisloft "]
[null,null,"Fane nr. 3","Driftsomkostninger"]
[null,null,"Fane nr. 4","Historiske investeringer "]
[null,null,"Fane nr. 5","Gennemførte investeringer"]
[null,null,"Fane nr. 6","Korrektion investeringer"]
[null,null,"Fane nr. 7","Planlagte investeringer"]
[null,null,"Fane nr. 8","1:1 omkostninger"]
[null,null,"Fane nr. 9","Miljø- og servicemål"]
[null,null,"Fane nr. 10","Nettofinansielle poster"]
[null,null,"Fane nr. 11","Over- eller underdækning"]
[null,null,"Fane nr. 12","Kontrol med indtægtsrammen og oversigt over ekstraordinære effektiviseringsgevinster"]

{"sheet":"2. Samlet prisloft","index":1,"n_rows":38,"n_cols":6,"rows_kept":38,"cut":false,"hidden":false,"merged":[[3,1,3,5]]}
[{"$f":"'1. Forside'!A1","v":"Silkeborg Vand A/S"}]
[]
[]
[null,"Fane 2. Samlet prisloft for 2015"]
[]
[null,"Driftsomkostninger"]
[null,"Driftsomkostninger i prisloftet for 2014",{"$f":"'3. Driftsomkostninger'!C20","v":14941898.15},"kr."]
[null,"Bortfald af væsentlige omkostninger",{"$f":"-'3. Driftsomkostninger'!C16","v":0},"kr."]
[null,"Korrektion for prisudviklingen 2014-2015",{"$f":"'3. Driftsomkostninger'!C22","v":11953.518520000001},"kr."]
[null,"Forhøjelse til effektivt niveau iht. benchmarkingen",{"$f":"'3. Driftsomkostninger'!C28","v":0},"kr."]
[null,"Korrektion for generelt effektiviseringskrav",{"$f":"-'3. Driftsomkostninger'!C34","v":-65744.35186000001},"kr."]
[null,"Korrektion for individuelt effektiviseringskrav",{"$f":"-'3. Driftsomkostninger'!C43","v":-412396.35719999997},"kr."]
[null,"Driftsomkostninger i alt",{"$f":"SUM(C7:C12)","v":14475710.95946},"kr.",{"$f":"C13","v":14475710.95946}," kr."]
[null,"Investeringer"]
[null,"Tillæg for historiske investeringer",{"$f":"'4. Historiske investeringer'!C9","v":10748348.865883218},"kr."]
[null,"Tillæg for gennemførte investeringer i 2011-2013",{"$f":"'5. Gennemførte investeringer'!F24","v":1413546.6666666665},"kr."]
[null,"Korrektion af tillæg for planlagte investeringer vedrørende 2013  ",{"$f":"'6. Korrektion investeringer'!C10","v":-110080.33333333337},"kr."]
[null,"Tillæg for planlagte investeringer i 2014 og 2015",{"$f":"'7. Planlagte investeringer'!F49","v":1852866.6666666665},"kr."]
[null,"Investeringstillæg i alt",{"$f":"SUM(C15:C18)","v":13904681.865883216},"kr.",{"$f":"C19","v":13904681.865883216}," kr."]
[null,"Øvrige omkostninger mv."]
[null,"Tillæg for 1:1 omkostninger i 2015",{"$f":"'8. 1-1 omkostninger'!C10","v":1413000},"kr."]
[null,"Tillæg for afgift for ledningsført vand i 2015",{"$f":"'8. 1-1 omkostninger'!C15","v":14712000},"kr."]
[null,"Tillæg vedr. revisorerklæringer og DANVA/FVD-kontingent",{"$f":"'8. 1-1 omkostninger'!C21","v":130000},"kr."]
[null,"Korrektion ift. faktiske 1:1 omkostninger i 2013",{"$f":"'8. 1-1 omkostninger'!C27","v":1680329},"kr."]
[null,"Tillæg for driftsomkostninger til miljø- og servicemål i 2015",{"$f":"'9. Miljø- og servicemål'!C8","v":0},"kr."]
[null,"Korrektion ift. faktiske driftsomkostninger til miljø- og servicemål i 2013",{"$f":"'9. Miljø- og servicemål'!C15","v":0},"kr."]
[null,"Tillæg/fradrag for nettofinansielle poster i 2015",{"$f":"'10. Nettofinansielle poster'!C9","v":-100000},"kr."]
[null,"Korrektion ift. faktiske nettofinansielle poster i 2013",{"$f":"'10. Nettofinansielle poster'!C16","v":166000},"kr."]
[null,"Øvrige omkostninger mv. i alt",{"$f":"SUM(C21:C28)","v":18001329},"kr.",{"$f":"C29","v":18001329}," kr."]
[null,"Historisk over- eller underdækning"]
[null,"Tillæg/fradrag for over- eller underdækning til og med 2010",{"$f":"'11. Over- eller underdækning'!C11","v":-5616500},"kr.",{"$f":"C31","v":-5616500}," kr."]
[null,"Korrektion i forhold til tidligere indtægtsramme "]
[null,"Korrektion for overholdelse af indtægtsramme i prisloft 2013",{"$f":"'12. Kontrol med indtægtsrammen'!E27","v":3802147.5957577974},"kr.",{"$f":"C33","v":3802147.5957577974}," kr."]
[null,"Samlet prisloft"]
[null,"Indtægtsramme i 2015 ",null,null,{"$f":"SUM(E13:E33)","v":44567369.421101011}," kr."]
[null,"Debiteret vandmængde i 2013",null,null,2414949," m3"]
[null,"Prisloft 2015",null,null,{"$f":"E35/E36","v":18.454787004239432}," kr./m3"]
[null,"Prisloft 2015 ekskl. afgift for ledningsført vand ",null,null,{"$f":"(E35-C22)/E36","v":12.362732886326382}," kr./m3"]

{"sheet":"3. Driftsomkostninger","index":2,"n_rows":43,"n_cols":4,"rows_kept":43,"cut":false,"hidden":false,"merged":[[3,1,3,3]]}
[{"$f":"'1. Forside'!A1","v":"Silkeborg Vand A/S"}]
[]
[]
[null,"Fane 3. Driftsomkostninger "]
[]
[null,"Driftsomkostningerne i prisloftet for 2014"]
[null,"Korrigerede driftsomkostninger i prisloftet for 2013 (DOiPL 2013)",15234010,"kr."]
[null,"Prisfremskrivning 1,5 pct.",{"$f":"0.015*SUM(C7:C7)","v":228510.15},"kr."]
[null,"Generelt effektiviseringskrav (0 pct.)",0,"kr."]
[null,"Individuelt effektiviseringskrav ",-520622,"kr."]
[null,"Driftsomkostningerne i prisloftet for 2014 (DOiPL 2014)",{"$f":"SUM(C7:C10)","v":14941898.15},"kr."]
[]
[]
[null,"Korrektion for forventet bortfald af væsentlige omkostninger"]
[null,"Selskabets indberettede bortfald af væsentlige omkostninger inden 2015",0,"kr."]
[null,"Korrektion for forventet bortfald ",{"$f":"SUM(C15:C15)","v":0},"kr."]
[]
[]
[null,"Korrektion for prisudviklingen fra 2014-2015"]
[null,"Driftsomkostningerne i prisloftet for 2014",{"$f":"C11-C16","v":14941898.15},"kr."]
[null,"Prisudvikling 2014 - 2015 ",0.08,"pct."]
[null,"Korrektion for prisudvikling",{"$f":"C20*(C21/100)","v":11953.518520000001},"kr."]
[]
[]
[null,"Eventuel forhøjelse til effektivt niveau iht. benchmarkingen"]
[null,"Selskabets effektive driftsomkostninger iht. benchmarkingen",10861264.929299999,"kr."]
[null,"Selskabets pristalskorrigerede driftsomkostninger i 2015-niveau",{"$f":"C20+C22","v":14953851.66852},"kr."]
[null,"Eventuel forhøjelse til effektivt niveau",{"$f":"IF(C27>C26,0,C26-C27)","v":0},"kr."]
[]
[]
[null,"Korrektion for generelt effektiviseringskrav"]
[null,"Driftsomkostningerne i prisloftet for 2014",{"$f":"C20","v":14941898.15},"kr. "]
[null,"Generelt effektiviseringskrav ",0.44,"pct."]
[null,"Endeligt generelt effektiviseringskrav",{"$f":"C32*(C33/100)","v":65744.35186000001},"kr. "]
[]
[]
[null,"Korrektion for individuelt effektiviseringskrav"]
[null,"Rå effektiviseringspotentiale",4080632.0707,"kr."]
[null,"Effektiviseringspotentiale efter eventuel korrektion for særlige forhold",4080632.0707,"kr."]
[null,"Effektiviseringspotentiale efter forsigtighedshensyn",1649585.4287999999,"kr."]
[null,"Effektiviseringspotentiale efter eventuel korrektion for sammensætning af signifikante costdrivere",1649585.4287999999,"kr. "]
[null,"Umiddelbart effektiviseringskrav",{"$f":"C41/4","v":412396.35719999997},"kr."]
[null,"Endeligt individuelt effektiviseringskrav",{"$f":"IF(C42>0.05*C20,0.05*C20,IF(C42<0.01*C20,0,C42))","v":412396.35719999997},"kr. "]

{"sheet":"4. Historiske investeringer","index":3,"n_rows":9,"n_cols":4,"rows_kept":9,"cut":false,"hidden":false,"merged":[[3,1,3,2]]}
[{"$f":"'3. Driftsomkostninger'!A1","v":"Silkeborg Vand A/S"}]
[]
[]
[null,"Fane 4. Historiske investeringer "]
[]
[null,"Tillæg for historiske investeringer "]
[null,"Værdi af selskabets materielle anlægsaktiver pr. 1. januar 2010",522407976.05281776,"kr."]
[null,"Den årlige standardafskrivning på de materielle anlægsaktiver iht. POLKA",10748348.865883218,"kr."]
[null,"Tillæg i alt i 2015",{"$f":"C8","v":10748348.865883218},"kr."]

{"sheet":"5. Gennemførte investeringer","index":4,"n_rows":24,"n_cols":7,"rows_kept":24,"cut":false,"hidden":false,"merged":[[3,1,3,5],[6,5,6,6]]}
[{"$f":"'4. Historiske investeringer'!A1","v":"Silkeborg Vand A/S"}]
[]
[]
[null,"Fane 5. Gennemførte investeringer i 2010 - 2013 "]
[]
[null,"Tillæg for gennemførte investeringer i 2013"]
[null," Beskrivelse af investeringen   ","Årstal ","Std. levetid (år)   "," Anskaffelses-pris (kr.)","Afskrivning "]
[null,"Køretøjer, små lastvogne (< 3.500 kg.)",2013,5,47000,{"$f":"E8/D8","v":9400},"kr."]
[null,"Nødstrømsanlæg på vandværk",2013,25,180000,7200,"kr."]
[null,"Ø 50mm < Ledningsnet = Ø110 mm",2013,75,3360000,44800,"kr."]
[null,"Ø110 mm < Ledningsnet = Ø 250 mm",2013,75,895000,11933.333333333334,"kr."]
[null,"Ø 250 mm < Ledningsnet = Ø 500mm",2013,75,1268000,16906.666666666668,"kr."]
[null,"Stik på ledningsnet, Konstruktioner",2013,75,982000,{"$f":"E13/D13","v":13093.333333333334},"kr."]
[null,"Stik på ledningsnet, Mek./EL",2013,75,982000,13093.333333333334,"kr."]
[null,"Ventiler på Ø 50mm < Ledningsnet = Ø110 mm",2013,75,587000,7826.666666666667,"kr."]
[null,"Ventiler på Ø110 mm < Ledningsnet = Ø 250 mm",2013,75,155000,2066.6666666666665,"kr."]
[null,"Ventiler på Ø 250 mm < Ledningsnet = Ø 500mm",2013,75,73000,973.33333333333337,"kr."]
[null,"SRO-brønd/kvarterbrønd/sektionsbrønd, Konstruktioner",2013,50,10000,200,"kr."]
[null,"Bygning for trykforøgere",2013,75,231000,3080,"kr."]
[null,"Afregningsmålere, elektroniske = Ø 110mm (Qn 10)",2013,10,2713000,271300,"kr."]
[null,"Pumpestation (inkl. evt. hydrofor)/trykforøger, Mek./EL",2013,25,725000,29000,"kr."]
[null,"Tillæg for 2013 ",null,null,null,{"$f":"SUM(F8:F21)","v":430873.33333333331},"kr."]
[null,"Tillæg for 2010 - 2012",null,null,null,982673.33333333326,"kr."]
[null,"Samlet tillæg for gennemførte investeringer",null,null,null,{"$f":"F22+F23","v":1413546.6666666665},"kr."]

{"sheet":"6. Korrektion investeringer","index":5,"n_rows":10,"n_cols":4,"rows_kept":10,"cut":false,"hidden":false,"merged":[[3,1,3,3]]}
[{"$f":"'5. Gennemførte investeringer'!A1","v":"Silkeborg Vand A/S"}]
[]
[]
[null,"Fane 6. Korrektion af tillæg for planlagte investeringer"]
[]
[null,"Korrektion af tillæg for planlagte investeringer vedr. 2013"]
[null,"Tillæg for planlagte investeringer i 2013 i prisloft 2013",181027,"kr."]
[null,"Tillæg for planlagte investeringer i 2013 i prisloft 2014",790800,"kr."]
[null,"Selskabets faktiske afskrivninger på gennemførte investeringer i 2013",{"$f":"'5. Gennemførte investeringer'!F22","v":430873.33333333331},"kr."]
[null,"Korrektion af tillæg for planlagte investeringer vedr. 2013",{"$f":"C9-C7+C9-C8","v":-110080.33333333337},"kr."]

{"sheet":"7. Planlagte investeringer","index":6,"n_rows":49,"n_cols":7,"rows_kept":49,"cut":false,"hidden":false,"merged":[[6,5,6,6],[3,1,3,6]]}
[{"$f":"'6. Korrektion investeringer'!A1","v":"Silkeborg Vand A/S"}]
[]
[]
[null,"Fane 7. Planlagte investeringer "]
[]
[null,"Tillæg for planlagte investeringer i 2014 og 2015"]
[null,"Beskrivelse af investeringen   ","Årstal ","Std. levetid (år)   ","Anskaffelses-pris (kr.)   ","Afskrivning"]
[null,"Boring (inkl. etablering, forerør, filter og prøvepumpning)",2014,30,2067000,{"$f":"E8/D8","v":68900},"kr."]
[null,"Råvandsstation komplet montering og boringshus/tørbrønd",2014,30,895000,{"$f":"E9/D9","v":29833.333333333332},"kr."]
[null,"Instrumenter (flowmåler+tryk transducer+alarmer)",2014,10,414000,{"$f":"E10/D10","v":41400},"kr."]
[null,"Pumpe inkl. stigrør og forerørsforsejlinger mv.",2014,15,689000,45933.333333333336,"kr."]
[null,"Elanlæg",2014,20,620000,31000,"kr."]
[null,"Beluftningsanlæg, rislebakke, Kontruktioner",2014,50,345000,6900,"kr."]
[null,"Beluftningsanlæg, rislebakke, Mek./EL",2014,25,414000,16560,"kr."]
[null,"Behandlingsanlæg, luddosering",2014,25,1378000,55120,"kr."]
[null,"Filteranlæg, åbne filtre, enkelt filtrering, Kontruktioner",2014,50,1103000,22060,"kr."]
[null,"Filteranlæg, åbne filtre, enkelt filtrering, Mek./EL",2014,25,965000,38600,"kr."]
[null,"Rentvandsbeholder insitu støbt",2014,50,8408000,168160,"kr."]
[null,"Udpumpningsanlæg, rentvandspumper på vandværk",2014,25,551000,22040,"kr."]
[null,"Udpumpningsanlæg, Freqvensomformer",2014,25,276000,11040,"kr."]
[null,"Skyllevand-/slamhåndteringsanlæg - lukkede betonbeholdere",2014,50,1378000,27560,"kr."]
[null,"Skyllevandsbehandling, inkl. UV-filter mv., Mek./EL",2014,25,345000,13800,"kr."]
[null,"Elanlæg - vandværk",2014,25,689000,27560,"kr."]
[null,"SRO-anlæg, vandværk",2014,10,827000,82700,"kr."]
[null,"Etageareal vandbehandlingsbygning",2014,75,689000,9186.6666666666661,"kr."]
[null,"Sikring (terror, hærværk), Mek./EL",2014,25,138000,5520,"kr."]
[null,"Sikring, avanceret (hegne, porte og overvågningssystemer), Mek./EL",2014,25,138000,5520,"kr."]
[null,"Beluftningsanlæg, iltningstrappe, Kontruktioner",2014,50,500000,10000,"kr."]
[null,"Filteranlæg, åbne filtre, enkelt filtrering, Kontruktioner",2014,50,650000,13000,"kr."]
[null,"Ø110 mm < Ledningsnet = Ø 250 mm",2014,75,5785000,77133.333333333328,"kr."]
[null,"Stik på ledningsnet, Konstruktioner",2014,75,300000,4000,"kr."]
[null,"Stik på ledningsnet, Mek./EL",2014,75,300000,4000,"kr."]
[null,"Pumpestation (inkl. evt. hydrofor)/trykforøger, Mek./EL",2014,25,70000,2800,"kr."]
[null,"Køretøjer, små lastvogne (< 3.500 kg.)",2014,5,300000,60000,"kr."]
[null,"Ø 50mm < Ledningsnet = Ø110 mm",2014,75,900000,12000,"kr."]
[null,"SRO-brønd/kvarterbrønd/sektionsbrønd, Konstruktioner",2014,50,113000,2260,"kr."]
[null,"Afregningsmålere, elektroniske = Ø 110mm (Qn 10)",2014,10,5500000,550000,"kr."]
[null,"Ø 50mm < Ledningsnet = Ø110 mm",2014,75,69000,920,"kr."]
[null,"Ø110 mm < Ledningsnet = Ø 250 mm",2014,75,2757000,36760,"kr."]
[null,"Ø 250 mm < Ledningsnet = Ø 500mm",2014,75,345000,4600,"kr."]
[null,"Ø110 mm < Ledningsnet = Ø 250 mm",2015,75,7500000,100000,"kr."]
[null,"Stik på ledningsnet, Konstruktioner",2015,75,300000,4000,"kr."]
[null,"Stik på ledningsnet, Mek./EL",2015,75,300000,4000,"kr."]
[null,"Køretøjer, små lastvogne (< 3.500 kg.)",2015,5,300000,60000,"kr."]
[null,"Afregningsmålere, elektroniske = Ø 110mm (Qn 10)",2015,10,1700000,170000,"kr."]
[null,"Pumpestation (inkl. evt. hydrofor)/trykforøger, Mek./EL",2015,25,200000,8000,"kr."]
[null,"Tillæg for 2014",null,null,null,{"$f":"SUMIF(C8:C46,\"2014\",F8:F46)","v":1506866.6666666665},"kr."]
[null,"Tillæg for 2015",null,null,null,{"$f":"SUMIF(C8:C46,\"2015\",F8:F46)","v":346000},"kr."]
[null,"Tillæg i alt",null,null,null,{"$f":"F47+F48","v":1852866.6666666665},"kr."]

{"sheet":"8. 1-1 omkostninger","index":7,"n_rows":27,"n_cols":4,"rows_kept":27,"cut":false,"hidden":false,"merged":[[3,1,3,3],[17,1,17,3],[23,1,23,3]]}
[{"$f":"'7. Planlagte investeringer'!A1","v":"Silkeborg Vand A/S"}]
[]
[]
[null,"Fane 8. 1:1 omkostninger"]
[]
[null,"Tillæg for budgetterede 1:1 omkostninger i 2015"]
[null,"Betaling til Forsyningssekretariatet",33000,"kr."]
[null,"Tjenestemandspensioner",1100000,"kr."]
[null,"Ejendomsskatter",280000,"kr."]
[null,"Tillæg i alt ",{"$f":"SUM(C7:C9)","v":1413000},"kr."]
[]
[]
[null,"Tillæg for afgift for ledningsført vand i 2015"]
[null,"Afgift for ledningsført vand (6,53 kr./m3)",14712000,"kr."]
[null,"Tillæg i alt ",{"$f":"SUM(C14:C14)","v":14712000},"kr."]
[]
[]
[null,"Tillæg for budgetterede nødvendige udgifter til revisorerklæringer samt ordinært medlemskab af DANVA og FVD i 2015"]
[null,"Betaling for ordinært medlemskab af DANVA/FVD",115000,"kr."]
[null,"Betaling for revisorerklæringer",15000,"kr."]
[null,"Tillæg i alt ",{"$f":"SUM(C19:C20)","v":130000},"kr."]
[]
[]
[null,"Korrektion af tillæg for faktiske 1:1 omkostninger (inkl. afgift for ledningsført vand, revisorerklæringer og ordinært medlemskab af DANVA/FVD) i 2013"]
[null,"Selskabets faktiske 1:1 omkostninger mv. i 2013, jf. reguleringsregnskabet",17473329,"kr."]
[null,"Tillæg for budgetterede 1:1 omkostninger mv. i prisloft 2013",15793000,"kr."]
[null,"Korrektion af tillæg for budgetterede 1:1 omkostninger mv. i 2013",{"$f":"C25-C26","v":1680329},"kr."]

{"sheet":"9. Miljø- og servicemål","index":8,"n_rows":15,"n_cols":4,"rows_kept":15,"cut":false,"hidden":false,"merged":[[3,1,3,3]]}
[{"$f":"'8. 1-1 omkostninger'!A1","v":"Silkeborg Vand A/S"}]
[]
[]
[null,"Fane 9. Driftsomkostninger til miljø- og servicemål "]
[]
[null,"Tillæg for budgetterede driftsomkostninger til miljø- og servicemål i 2015"]
[null,null,0,"kr."]
[null,"Tillæg i alt",{"$f":"SUM(C7:C7)","v":0},"kr."]
[]
[]
[]
[null,"Korrektion af tillæg for faktiske driftsomkostninger til miljø- og servicemål i 2013"]
[null,"Selskabets faktiske driftsomkostninger til miljø- og servicemål i 2013, jf. reguleringsregnskabet",0,"kr."]
[null,"Tillæg for budgetterede driftsomkostninger til miljø- og servicemål i prisloft 2013",0,"kr."]
[null,"Korrektion af tillæg for budgetterede driftsomkostninger til miljø- og servicemål i 2013",{"$f":"C13-C14","v":0},"kr."]

{"sheet":"10. Nettofinansielle poster","index":9,"n_rows":16,"n_cols":4,"rows_kept":16,"cut":false,"hidden":false,"merged":[[3,1,3,3]]}
[{"$f":"'2. Samlet prisloft'!A1","v":"Silkeborg Vand A/S"}]
[]
[]
[null,"Fane 10. Nettofinansielle poster"]
[]
[null,"Tillæg for budgetterede nettofinansielle poster i 2015"]
[null,"Budgetterede renteudgifter og gebyrer i 2015",0,"kr."]
[null,"Budgetterede renteindtægter i 2015",100000,"kr."]
[null,"Tillæg/fradrag i alt",{"$f":"C7-C8","v":-100000},"kr."]
[]
[]
[]
[null,"Korrektion af tillæg for faktiske nettofinansielle poster i 2013"]
[null,"Selskabets faktiske nettofinansielle poster i 2013, jf. reguleringsregnskabet",-84000,"kr."]
[null,"Tillæg for budgetterede nettofinansielle poster i prisloft 2013",-250000,"kr."]
[null,"Korrektion af tillæg for budgetterede nettofinansielle poster i 2013",{"$f":"C14-C15","v":166000},"kr."]

{"sheet":"11. Over- eller underdækning","index":10,"n_rows":11,"n_cols":4,"rows_kept":11,"cut":false,"hidden":false,"merged":[[3,1,3,3]]}
[{"$f":"'1. Forside'!A1","v":"Silkeborg Vand A/S"}]
[]
[]
[null,"Fane 11. Over- eller underdækning til og med 2010"]
[]
[null,"Tillæg/fradrag for over- eller underdækning til og med 2010"]
[null,"Opgjort over- eller underdækning per 31. december 2010",-24977000,"kr."]
[null,"Heraf beløb indregnet i prislofterne for 2011 - 2014",-19360500,"kr."]
[null,"Endnu ikke indregnet over- eller underdækning",{"$f":"C7-C8","v":-5616500},"kr."]
[null,"Resterende indregningsperiode (fastsat i prisloftet for 2012)",1,"år"]
[null,"Tillæg/fradrag i alt",{"$f":"IF(C7=0,0,C9/C10)","v":-5616500},"kr."]

{"sheet":"12. Kontrol med indtægtsrammen","index":11,"n_rows":38,"n_cols":12,"rows_kept":38,"cut":false,"hidden":false,"merged":[[3,1,3,5],[30,1,30,4],[5,1,5,5]]}
[{"$f":"'11. Over- eller underdækning'!A1","v":"Silkeborg Vand A/S"}]
[]
[]
[null,"Fane 12. Korrektion for overholdelse af indtægtsrammen i prisloftet for 2013"]
[]
[null,"Samlet opgørelse vedrørende overholdelse af indtægtsrammen i prisloftet for 2013"]
[null,"Indtægtsramme i prisloftet for 2013",null,null,44032662.844679601,"kr."]
[null,"Ikke anvendt likviditet vedrørende investeringer i 2013"]
[null,"Tillæg for historiske investeringer ",11996468.248921804,"kr."]
[null,"Tillæg for gennemførte investeringer i 2011",625133,"kr."]
[null,"Korrektion af tillæg for planlagte investeringer i 2011",-517613,"kr."]
[null,"Tillæg for planlagte investeringer i 2012 og 2013",917527,"kr."]
[null,"Indtægter fra tilslutningsbidrag",919000,"kr."]
[null,"Indtægter fra salg af anlægsaktiver",26000,"kr."]
[null,"Erstatninger vedr. anlægsaktiver mv.",0,"kr."]
[null,"Ekstraordinær effektiviseringsgevinst anvendt til investeringer",{"$f":"4536000+4567000","v":9103000},"kr."]
[null,"Udgifter til investeringer",-20457000,"kr."]
[null,"Ikke anvendt likviditet vedr. investeringer i alt",{"$f":"SUM(C9:C17)","v":2612515.2489218041},"kr.",{"$f":"IF(C18<0,0,-C18)","v":-2612515.2489218041},"kr."]
[null,"Ekstraordinære effektiviseringsgevinster anvendt til takstnedsættelse"]
[null,"Ekstraordinær effektiviseringsgevinst anvendt til takstnedsættelse",0,"kr.",{"$f":"-C20","v":0},"kr."]
[null,"Korrektion af ikke opkrævet tillæg fra 2011 i prisloft 2013"]
[null,"Korrektion af ikke opkrævet tillæg fra 2011 i prisloft 2013",0,"kr.",{"$f":"-C22","v":0},"kr."]
[null,"Indtægter fra primære aktiviteter mv."]
[null,"Indtægter fra kubikmetertakster, faste takster, særbidrag, målergebyrer samt andre takster og gebyrer",37618000,"kr."]
[null,"Andre indtægter i prisloftåret, som selskabet har opnået i forbindelse med eller som følge af selskabets primære aktiviteter",0,"kr."]
[null,"Indtægter fra primære aktiviteter mv. i alt",{"$f":"SUM(C24:C25)","v":37618000},"kr.",{"$f":"-C26","v":-37618000},"kr."]
[null,"Tillæg/fradrag i prisloftet for 2015 i alt",null,null,{"$f":"E7+E18+E20+E22+E26","v":3802147.5957577974},"kr."]
[]
[]
[]
[null,"Oversigt over ekstraordinære effektiviseringsgevinster"]
[]
[null,null,2012,null,2013,null,2014,null,2015,null,2016]
[null,"Indhentet ekstraordinær effektiviseringsgevinst",4567604,"kr.",4536000,"kr.",null,"kr.",null,"kr.",null,"kr."]
[null,"Gevinst anvendt til investeringer",0,"kr.",9103000,"kr.",null,"kr.",null,"kr.",null,"kr."]
[null,"Gevinst anvendt til takstnedsættelse",0,"kr.",0,"kr.",null,"kr.",null,"kr.",null,"kr."]
[null,"Korrektion for  effektiviseringsgevinst der ikke er anvendt inden 4 år",0,"kr.",0,"kr.",null,"kr.",null,"kr.",{"$f":"IF(C38>SUM(E35:I36),C38-SUM(E35:I36),0)*-1","v":0},"kr."]
[null,"Resterende gevinst",{"$f":"C34-C35-C36","v":4567604},"kr.",{"$f":"C38+E34-E35-E36","v":604},"kr.",{"$f":"E38+G34-G35-G36","v":604},"kr.",{"$f":"G38+I34-I35-I36","v":604},"kr.",{"$f":"K34-K35-K36+K37+I38","v":604},"kr."]